Cogmind - Beta 9.4 @@@ ROGUE MODE // 2020.01.13 @ 23:44:18 // Winter2019/RPGLIKE Player: Rumbl3 Result: Destroyed by S-27 Virus with Autogun Performance ------------- Evolutions (6) 3000 Regions Visited (20) 4000 Robots Destroyed (181) 905 Value Destroyed (10217) 10217 Prototype IDs (14) 280 Alien Tech Used (0) 0 Bonus (6849) 6849 TOTAL SCORE: 25251 Bonus ------- High Alert Combat Kills 864 Follower Combat Kills 2062 Entered Garrisons 1200 Used RIF Installer 3000 Friendly Fire -277 Cogmind --------- Core Integrity 0/1000 Matter 251/300 Energy 225/280 System Corruption 3% Temperature Cool (97) Movement Hovering (102) Ox1 Location -4/Upper Caves Parts ------- > --- POWER (2) -------- Light Quantum Reactor Light Quantum Reactor > --- PROPULSION (3) --- Cooled Airjet Cooled Airjet Cooled Airjet > --- UTILITY (12) ----- Advanced Sensor Array Advanced Signal Interpreter Advanced Terrain Scanner Improved Targeting Computer Improved Kinecellerator Layered Light Armor Plating Relay Coupler [NC] (52) Relay Coupler [Swarmer] (38) Relay Coupler [Grunt] (2) Relay Coupler [Duelist] (43) Relay Coupler [Sentry] (52) Relay Coupler [Behemoth] (11) > --- WEAPON (3) ------- KE Penetrator Railgun Improved Proton Missile Launcher > --- INVENTORY (6) ---- Improved Maneuvering Thrusters Railgun Long-range Missile Launcher Improved Remote Datajack Makeshift Axe Peak State ------------ > --- POWER ------------ Light Quantum Reactor Light Quantum Reactor > --- PROPULSION ------- Cooled Airjet Cooled Airjet Cooled Airjet > --- UTILITY ---------- Advanced Sensor Array Advanced Signal Interpreter Advanced Terrain Scanner Improved Targeting Computer Core Analyzer Improved Kinecellerator Relay Coupler [NC] Relay Coupler [Swarmer] Relay Coupler [Grunt] Relay Coupler [Duelist] Relay Coupler [Sentry] Relay Coupler [Behemoth] > --- WEAPON ----------- KE Penetrator Railgun Improved Remote Datajack > --- INVENTORY -------- Improved Maneuvering Thrusters Layered Light Armor Plating Railgun Improved Proton Missile Launcher Long-range Missile Launcher Makeshift Axe [Rating: 96] Favorites ----------- Power Light Angular Momentum Engine Engine Light Angular Momentum Engine Power Core Light Nuclear Core Reactor Light Quantum Reactor Propulsion Cooled Airjet Wheel Wheel Hover Unit Cooled Airjet Flight Unit Flight Unit Utility Improved Targeting Computer Device Advanced Sensor Array Processor Improved Targeting Computer Hackware Relay Coupler [NC] Protection Improved Light Armor Plating Weapon Enhanced Autogun Energy Gun Particle Gun Ballistic Gun Enhanced Autogun Launcher Shock Bomb Launcher Special Weapon Remote Datajack Slashing Weapon Makeshift Axe Build | -11 -10 -10 -9 -9 -9 -8 -8 -8 -8 -8 -7 -7 -7 -7 -6 -6 -5 -5 -4 -4 ------- Run | Scr Mat Min Mat Min Exi Min Mat Gar Mat Gar Fac Gar Fac Gar Fac Gar Fac Gar Fac Upp Slots Evolved 16 | 3 . 1 1 . . 2 2 . . . 1 . 2 1 . . 1 1 1 . Power 1 | . . . . . . . . . . . . . 1 . . . . . . . Propulsion 2 | 1 . . . . . 1 . . . . . . . . . . . . . . Utility 11 | 1 . 1 1 . . 1 1 . . . 1 . 1 1 . . 1 1 1 . Weapon 2 | 1 . . . . . . 1 . . . . . . . . . . . . . Parts Attached 165 | 4 7 3 4 1 . 10 8 8 7 4 15 12 16 18 10 10 2 9 15 2 Power 17 | . . 1 1 . . 1 . 1 . . . . 2 . 3 2 . 2 4 . Engine 12 | . . 1 1 . . . . 1 . . . . 2 . 3 2 . 2 . . Core 2 | . . . . . . 1 . . . . . . . . . . . . 1 . Reactor 3 | . . . . . . . . . . . . . . . . . . . 3 . Propulsion 22 | 2 2 . 1 . . 1 . 4 3 . 5 . . . 2 . . . 2 . Treads . | . . . . . . . . . . . . . . . . . . . . . Leg . | . . . . . . . . . . . . . . . . . . . . . Wheel 2 | 2 . . . . . . . . . . . . . . . . . . . . Hover 16 | . 2 . 1 . . 1 . . 3 . 5 . . . 2 . . . 2 . Flight 4 | . . . . . . . . 4 . . . . . . . . . . . . Utility 46 | 1 4 1 1 . . 1 3 . 1 1 4 1 4 7 1 4 1 6 4 1 Device 12 | . 2 1 . . . 1 1 . . . 2 . 2 1 . . 1 . 1 . Storage . | . . . . . . . . . . . . . . . . . . . . . Processor 8 | 1 2 . . . . . 1 . 1 . . . 1 1 . . . . 1 . Hackware 17 | . . . . . . . . . . 1 2 . . 4 1 3 . 6 . . Protection 9 | . . . 1 . . . 1 . . . . 1 1 1 . 1 . . 2 1 Artifact . | . . . . . . . . . . . . . . . . . . . . . Weapon 80 | 1 1 1 1 1 . 7 5 3 3 3 6 11 10 11 4 4 1 1 5 1 Energy Gun 7 | . . . 1 . . 3 1 . . . . . . . 1 . . . 1 . Energy Cannon . | . . . . . . . . . . . . . . . . . . . . . Ballistic Gun 19 | 1 1 1 . . . . 2 1 3 1 1 1 1 2 1 . . . 3 . Ballistic Cannon . | . . . . . . . . . . . . . . . . . . . . . Launcher 15 | . . . . . . 2 . 1 . 1 1 2 4 1 . 2 . . . 1 Special Weapon 19 | . . . . . . . . . . . 1 5 3 5 1 2 . 1 1 . Impact Weapon . | . . . . . . . . . . . . . . . . . . . . . Slashing Weapon 20 | . . . . 1 . 2 2 1 . 1 3 3 2 3 1 . 1 . . . Piercing Weapon . | . . . . . . . . . . . . . . . . . . . . . Special Melee Weapon . | . . . . . . . . . . . . . . . . . . . . . Unidentified Prototypes 2 | . . . . . . . . . . . 2 . . . . . . . . . Parts Lost 6 | . . . . . . . 1 3 . . . 1 . . 1 . . . . . Power . | . . . . . . . . . . . . . . . . . . . . . Propulsion 2 | . . . . . . . . 2 . . . . . . . . . . . . Utility 2 | . . . . . . . 1 . . . . . . . 1 . . . . . Weapon 2 | . . . . . . . . 1 . . . 1 . . . . . . . . Highest Loss Streak 2 | . . . . . . . 1 2 . . . 1 . . 1 . . . . . Average Slot Usage (%) 99 | . 91 100 100 100 100 100 97 98 100 100 100 98 100 99 100 98 100 100 100 100 Engine 8 | . 14 12 11 11 11 8 . 2 7 7 7 7 10 11 11 11 11 10 2 . Hover 18 | . 6 26 22 22 22 23 24 7 16 23 21 21 18 17 17 17 16 15 15 15 Device 17 | . 6 19 22 22 22 23 24 23 23 23 19 14 17 17 17 11 12 15 14 15 Processor 12 | . 14 12 11 11 11 10 14 15 15 15 14 14 14 13 11 11 11 10 11 14 Hackware 12 | . . . . . . . . . . . 14 19 10 13 18 25 22 29 30 30 Protection 4 | . . . 9 11 11 10 5 7 7 6 . . 6 5 3 1 5 1 . . Energy Gun 2 | . 12 . 5 9 . 5 7 1 . . . . . . . . . . . . Ballistic Gun 12 | . 15 26 17 11 11 10 8 13 15 18 15 14 12 12 11 11 11 10 10 10 Launcher 1 | . . . . . . 2 . 5 . 2 2 . 2 . . 2 . . . 5 Special Weapon 1 | . . . . . . . . . . . . 2 1 3 3 2 . 5 5 . Slashing Weapon 1 | . . . . 1 11 2 1 1 6 . 2 3 2 . 1 . 4 . . . Naked Turns . | . . . . . . . . . . . . . . . . . . . . . Heaviest Build 60 | 7 8 10 17 17 17 18 20 26 25 28 25 24 43 41 36 44 39 39 52 60 Greatest Support 63 | 31 31 17 17 17 17 23 23 32 53 53 59 59 59 59 59 59 59 59 63 59 Greatest Overweight (x) 1 | . . . . . . 1 . 1 . . . . . . . . . . . 1 Average Overweight (x) . | . . . . . . . . . . . . . . . . . . . . . Largest Inventory Capacity 6 | 2 2 2 2 3 3 3 4 6 6 6 6 6 6 6 6 6 6 6 6 6 Average Capacity 4 | 1 2 2 2 2 3 3 3 4 6 6 6 6 6 6 6 6 6 6 6 6 Most Carried 6 | 1 2 2 2 3 3 3 4 6 6 6 6 6 6 6 6 6 6 6 6 6 Average Carried 4 | . 1 1 1 2 3 2 2 4 6 5 5 5 5 5 5 5 5 5 6 5 Final Capacity 6 | 2 2 2 2 3 3 3 4 6 6 6 6 6 6 6 6 6 6 6 6 6 Final Carried 6 | 1 2 2 2 3 3 3 4 6 6 6 6 6 6 6 5 6 5 6 6 5 Class Distribution -------------------- 38% | Bothacker-Scout 28% | Scavenger-Scout 14% | Botlord-Scout 8% | Scout 5% | Mutant Dominant Class ---------------- Mutant | -10/Materials Scavenger-Scout | -10/Mines Scavenger-Scout | -9/Materials Scavenger-Scout | -9/Mines Scavenger-Scout | -9/Exiles Scavenger-Scout | -8/Mines Scavenger-Scout | -8/Materials Scavenger-Scout | -8/Garrison Scout | -8/Materials Scout | -8/Garrison Bothacker-Scout | -7/Factory Bothacker-Scout | -7/Garrison Bothacker-Scout | -7/Factory Bothacker-Scout | -7/Garrison Bothacker-Scout | -6/Factory Bothacker-Scout | -6/Garrison Bothacker-Scout | -5/Factory Botlord-Scout | -5/Garrison Botlord-Scout | -4/Factory Botlord-Scout | -4/Upper Caves Resources | -11 -10 -10 -9 -9 -9 -8 -8 -8 -8 -8 -7 -7 -7 -7 -6 -6 -5 -5 -4 -4 ----------- Run | Scr Mat Min Mat Min Exi Min Mat Gar Mat Gar Fac Gar Fac Gar Fac Gar Fac Gar Fac Upp Matter Collected 5377 | 264 95 109 52 88 . 191 243 329 147 216 218 507 441 540 257 464 . 351 575 290 Remotely . | . . . . . . . . . . . . . . . . . . . . . Salvage Created 6142 | 175 166 106 174 328 . 228 364 267 167 301 218 529 256 762 160 383 . 420 424 714 Parts 371 | 13 16 16 11 22 . 21 21 21 10 26 7 35 32 25 8 13 . 9 33 32 Haulers Intercepted 3 | . 1 . 1 . . . . . . . . . . . . . . . 1 . Recyclers Shooed . | . . . . . . . . . . . . . . . . . . . . . Parts Field Recycled . | . . . . . . . . . . . . . . . . . . . . . Retrieved Matter . | . . . . . . . . . . . . . . . . . . . . . Parts Self-Destructed 5 | . . . . . . . . . . . . . . . . . . . . 5 Prevented 12 | . . . . . . . . . . . . . . . . . . . . 12 Kills | -11 -10 -10 -9 -9 -9 -8 -8 -8 -8 -8 -7 -7 -7 -7 -6 -6 -5 -5 -4 -4 ------- Run | Scr Mat Min Mat Min Exi Min Mat Gar Mat Gar Fac Gar Fac Gar Fac Gar Fac Gar Fac Upp Combat Hostiles Destroyed 152 | . 3 9 4 6 . 13 9 11 3 12 2 19 10 15 1 8 . 10 8 9 Melee 2 | . . . . . . . 1 . . . . 1 . . . . . . . . Guns 121 | . 3 9 4 6 . 6 8 9 3 10 2 13 7 13 1 7 . 10 6 4 AOE 29 | . . . . . . 7 . 2 . 2 . 5 3 2 . 1 . . 2 5 Classes Destroyed 17 | 2 3 . 1 5 . . 1 . . . . 2 1 1 1 . . . . . Worker 5 | . . . . 1 . . 1 . . . 1 . 1 . . . . . 1 . Builder 3 | . . . . 2 . . . . . . . . . . . . . . 1 . Tunneler 7 | 5 1 . . 1 . . . . . . . . . . . . . . . . Hauler 3 | . 1 . 1 . . . . . . . . . . . . . . . 1 . Recycler 1 | 1 . . . . . . . . . . . . . . . . . . . . Mechanic 1 | . . . . . . . . . . . . . . . 1 . . . . . Watcher 8 | . 3 . . . . . 1 . 1 . . 1 . . 1 . . . 1 . Swarmer 60 | . 3 9 2 . . 8 . 4 . 6 . 8 4 5 . 2 . 2 3 4 Grunt 54 | . . . . 3 . 3 5 7 2 2 . 9 1 6 . 6 . 4 2 4 Brawler 5 | . . . . 1 . 1 . . . . . . . 2 . . . 1 . . Duelist 2 | . . . . 1 . 1 . . . . . . . . . . . . . . Protector 1 | . . . . . . . . . . . . 1 . . . . . . . . Sentry 21 | . . . 2 1 . . 2 . 1 3 2 . 4 1 1 . . 3 1 . Demolisher 1 | . . . . . . . . . . . . 1 . . . . . . . . Specialist 1 | . . . . . . . . . . . . . . 1 . . . . . . Hunter 7 | . . . . . . . 2 . . 1 . . . . . . . . 2 2 Programmer 1 | . . . . . . . . . . . . . 1 . . . . . . . Best Kill Streak 8 | 4 4 5 3 3 . 4 3 8 2 5 1 6 3 4 1 2 . 4 4 4 Combat Bots Only 8 | . 3 3 3 3 . 4 3 8 2 5 1 6 3 4 1 2 . 4 3 4 Max Kills in Single Turn 3 | 1 1 2 1 1 . 3 1 1 1 2 1 2 2 2 1 1 . 2 3 3 Gunslinging 1 | . . 1 . . . . . . . 1 . 1 . 1 . . . 1 . . Exploded 3 | . . . . . . 3 . 1 . 1 . 2 1 1 . 1 . . 2 3 Melee 1 | . . . . . . . 1 . . . . 1 . . . . . . . . Uniques/NPCs Destroyed . | . . . . . . . . . . . . . . . . . . . . . Combat | -11 -10 -10 -9 -9 -9 -8 -8 -8 -8 -8 -7 -7 -7 -7 -6 -6 -5 -5 -4 -4 -------- Run | Scr Mat Min Mat Min Exi Min Mat Gar Mat Gar Fac Gar Fac Gar Fac Gar Fac Gar Fac Upp Damage Taken 10215 | . 133 141 137 126 . 319 1195 570 137 371 191 952 448 956 411 797 . 902 1954 475 Core 7704 | . 109 113 110 97 . 220 910 402 98 254 154 766 291 651 276 649 . 680 1561 363 Absorbed by Shields 66 | . . . . . . . . . . 40 . 22 . 4 . . . . . . Redirected to Core 6473 | . 72 83 69 77 . 158 731 350 82 213 112 626 272 576 272 503 . 588 1360 329 Core Remaining (%) 94 | 100 . 100 . . . 100 . . . 73 . . . 89 . 97 . 100 . . Volleys Fired 553 | 8 16 14 11 18 . 23 50 31 10 22 11 46 32 58 23 53 . 45 68 14 Largest 3 | 2 2 2 2 2 . 2 3 3 3 3 3 3 3 3 2 3 . 2 2 3 Hottest 111 | 70 70 40 85 85 . 85 108 81 70 78 86 86 89 89 53 96 . 53 68 111 Shots Fired 1023 | 16 30 28 21 36 . 42 102 61 21 51 25 82 61 99 34 96 . 67 115 36 Gun 880 | 16 30 28 21 36 . 38 102 56 21 46 21 66 47 77 25 82 . 48 96 24 Cannon . | . . . . . . . . . . . . . . . . . . . . . Launcher 49 | . . . . . . 4 . 5 . 5 2 6 9 1 . 5 . . . 12 Special 94 | . . . . . . . . . . . 2 10 5 21 9 9 . 19 19 . Kinetic 768 | 8 16 28 14 18 . 19 56 56 21 46 21 66 47 77 25 82 . 48 96 24 Thermal 112 | 8 14 . 7 18 . 19 46 . . . . . . . . . . . . . Explosive 11 | . . . . . . 4 . . . . . 3 4 . . . . . . . Electromagnetic 38 | . . . . . . . . 5 . 5 2 3 5 1 . 5 . . . 12 Robot Hit Streak 28 | 8 9 7 6 12 . 12 28 22 4 6 9 15 22 14 6 12 . 16 16 13 Robot Miss Streak 9 | 1 2 4 1 2 . 2 2 1 1 9 2 3 5 4 2 2 . 3 4 3 Penetration Max 1 | . . . . . . . . . . . . . . 1 . 1 . 1 1 1 Secondary Targets 26 | . 1 2 2 1 . 2 2 3 . 4 . 2 . 2 . . . 3 2 . Max Gunslinging Chain 1 | . 1 1 1 1 . 1 1 1 . 1 . 1 . 1 . . . 1 1 . Shots Hit Robots 733 | 10 19 15 14 29 . 32 89 43 15 29 23 51 41 72 26 69 . 50 85 21 Core Hits 364 | 7 9 10 7 15 . 23 25 24 7 21 7 33 38 31 8 29 . 20 26 24 Critical Hits 13 | . . 1 . . . . . . . . 1 1 . 2 1 . . 2 5 . Critical Kills 3 | . . 1 . . . . . . . . . . . 1 . . . . 1 . Critical Parts Destroyed 10 | . . . . . . . . . . . 1 1 . 1 1 . . 2 4 . Melee Attacks 68 | . . . . 11 . 3 4 4 5 1 13 7 10 6 1 . 3 . . . Impact . | . . . . . . . . . . . . . . . . . . . . . Slashing 68 | . . . . 11 . 3 4 4 5 1 13 7 10 6 1 . 3 . . . Piercing . | . . . . . . . . . . . . . . . . . . . . . Sneak Attacks 4 | . . . . 2 . . 1 . . . 1 . . . . . . . . . Combat Hostiles . | . . . . . . . . . . . . . . . . . . . . . Follow-up Attacks . | . . . . . . . . . . . . . . . . . . . . . Damage Inflicted 15626 | 127 202 192 197 629 . 825 1588 799 209 418 536 1104 1196 1255 321 1450 . 919 2355 1304 Guns 11750 | 127 202 192 197 387 . 424 1395 561 173 378 264 698 828 961 321 1191 . 919 2085 447 Cannons . | . . . . . . . . . . . . . . . . . . . . . Explosions 2936 | . . . . . . 401 . 238 . 40 21 260 368 222 . 259 . . 270 857 Melee 940 | . . . . 242 . . 193 . 36 . 251 146 . 72 . . . . . . Ramming . | . . . . . . . . . . . . . . . . . . . . . Kinetic 10225 | 39 61 192 101 139 . 180 687 561 173 378 264 698 828 961 321 1191 . 919 2085 447 Thermal 2082 | 88 141 . 96 248 . 244 708 . . . . . . 136 . . . . 270 151 Explosive 933 | . . . . . . 401 . . . . . 247 285 . . . . . . . Electromagnetic 1446 | . . . . . . . . 238 . 40 21 13 83 86 . 259 . . . 706 Impact . | . . . . . . . . . . . . . . . . . . . . . Slashing 940 | . . . . 242 . . 193 . 36 . 251 146 . 72 . . . . . . Piercing . | . . . . . . . . . . . . . . . . . . . . . Highest Corruption 3 | . . . . . . . . . . . . . . . 2 2 . . 3 3 Average Corruption 2 | . . . . . . . . . . . . . . . 2 2 . . 2 3 Corruption Purged . | . . . . . . . . . . . . . . . . . . . . . Effects 15 | . . . . . . . . . . . . . . . . 11 . . 1 3 Message Errors 4 | . . . . . . . . . . . . . . . . 2 . . 1 1 Heat Flow Errors 3 | . . . . . . . . . . . . . . . . 3 . . . . Energy Discharges 3 | . . . . . . . . . . . . . . . . 3 . . . . Data Loss (minor) 1 | . . . . . . . . . . . . . . . . 1 . . . . Targeting Errors 4 | . . . . . . . . . . . . . . . . 2 . . . 2 Overload Shots . | . . . . . . . . . . . . . . . . . . . . . Overflow Damage 223 | . . . . . . 41 5 . . . 122 22 . . . 12 . . . 21 Projectiles . | . . . . . . . . . . . . . . . . . . . . . Explosions 96 | . . . . . . 41 . . . . . 22 . . . 12 . . . 21 Melee 127 | . . . . . . . 5 . . . 122 . . . . . . . . . Knockbacks . | . . . . . . . . . . . . . . . . . . . . . Impact . | . . . . . . . . . . . . . . . . . . . . . Kinetic . | . . . . . . . . . . . . . . . . . . . . . Secondary . | . . . . . . . . . . . . . . . . . . . . . Self-Inflicted Damage 108 | . . . . . . . . . . 98 . 10 . . . . . . . . Shots 3 | . . . . . . . . . . 2 . 1 . . . . . . . . Rammed . | . . . . . . . . . . . . . . . . . . . . . Targets Rammed . | . . . . . . . . . . . . . . . . . . . . . Kicked . | . . . . . . . . . . . . . . . . . . . . . Crushed . | . . . . . . . . . . . . . . . . . . . . . Highest Temperature 336 | 45 36 13 201 336 . 273 51 5 . 12 11 85 92 77 39 326 . 88 272 248 Average Temperature 60 | 19 13 4 77 102 . 96 17 5 . 6 6 31 25 25 13 58 . 36 87 113 Received Heat Transfer 2547 | . . 9 9 51 . 144 441 279 72 27 54 273 96 225 78 288 . 204 261 36 Effects 4 | . . . . 1 . . . . . . . . . . . 3 . . . . Shutdowns 1 | . . . . 1 . . . . . . . . . . . . . . . . Interference 3 | . . . . . . . . . . . . . . . . 3 . . . . Siege Activations . | . . . . . . . . . . . . . . . . . . . . . Robots Corrupted . | . . . . . . . . . . . . . . . . . . . . . Combat Hostiles . | . . . . . . . . . . . . . . . . . . . . . Parts Fried 6 | . . . . . . . . 1 . . . . 1 . . . . . . 4 Impact Corruptions . | . . . . . . . . . . . . . . . . . . . . . Robots Melted . | . . . . . . . . . . . . . . . . . . . . . Combat Hostiles . | . . . . . . . . . . . . . . . . . . . . . Parts Melted 5 | . 1 . . . . . 1 . . . . 2 . . . . . . . 1 Heat Transferred 4076 | 259 407 . 222 592 . 592 1554 . . . . . . 150 . . . . 200 100 Parts Sabotaged . | . . . . . . . . . . . . . . . . . . . . . Parts Stolen . | . . . . . . . . . . . . . . . . . . . . . Parts Stripped . | . . . . . . . . . . . . . . . . . . . . . Power Chain Reactions 7 | . . . . . . . . . . 1 . 1 1 1 . 1 . . . 2 Missiles Intercepted . | . . . . . . . . . . . . . . . . . . . . . Alert | -11 -10 -10 -9 -9 -9 -8 -8 -8 -8 -8 -7 -7 -7 -7 -6 -6 -5 -5 -4 -4 ------- Run | Scr Mat Min Mat Min Exi Min Mat Gar Mat Gar Fac Gar Fac Gar Fac Gar Fac Gar Fac Upp Peak Influence 1064 | 30 236 354 427 404 . 586 488 350 387 781 417 865 869 1064 617 719 381 317 389 . Average Influence 399 | 12 129 295 248 253 . 356 315 176 270 528 370 614 631 843 578 476 328 188 263 . Maximum Alert Level 3 | . 1 1 2 2 . 2 2 1 1 3 2 3 3 3 2 3 1 1 1 . Low Security (%) 19 | 100 86 10 43 15 . 26 16 53 14 . . . . . . . 17 66 24 . Level 1 39 | . 13 89 50 80 . 21 53 46 85 24 63 24 . . . 29 82 33 75 . Level 2 28 | . . . 6 3 . 51 30 . . 62 36 35 67 12 100 61 . . . . Level 3 12 | . . . . . . . . . . 12 . 40 32 87 . 8 . . . . Level 4 . | . . . . . . . . . . . . . . . . . . . . . Level 5 . | . . . . . . . . . . . . . . . . . . . . . High Security . | . . . . . . . . . . . . . . . . . . . . . Max Security . | . . . . . . . . . . . . . . . . . . . . . Squads Dispatched 21 | . . . 2 . . . 6 . 1 . 2 . 2 . 1 . . . 7 . Investigation 9 | . . . 2 . . . . . 1 . 1 . 1 . 1 . . . 3 . Extermination 4 | . . . . . . . . . . . 1 . 1 . . . . . 2 . Reinforcement 5 | . . . . . . . 3 . . . . . . . . . . . 2 . Assault . | . . . . . . . . . . . . . . . . . . . . . Garrison 3 | . . . . . . . 3 . . . . . . . . . . . . . Intercept . | . . . . . . . . . . . . . . . . . . . . . Construction Impeded 1 | . . . . . . . . . . . . . . . . . . . 1 . Haulers Reinforced . | . . . . . . . . . . . . . . . . . . . . . Alert ID Control Effect 51 | . . . . . . . . . . . 2 3 . 7 1 14 . 7 17 . Stealth | -11 -10 -10 -9 -9 -9 -8 -8 -8 -8 -8 -7 -7 -7 -7 -6 -6 -5 -5 -4 -4 --------- Run | Scr Mat Min Mat Min Exi Min Mat Gar Mat Gar Fac Gar Fac Gar Fac Gar Fac Gar Fac Upp Distress Signals 12 | . . . . . . . 8 . 1 . . 1 1 . . . . . 1 . Communications Jammed . | . . . . . . . . . . . . . . . . . . . . . Distress Signals . | . . . . . . . . . . . . . . . . . . . . . Times Spotted 324 | . 10 11 8 8 . 16 34 15 6 10 5 26 14 36 11 29 . 28 43 14 Peak Tracking Total 13 | . 3 3 5 3 . 5 11 7 5 3 3 5 4 12 3 9 . 11 8 13 Tactical Retreats 20 | . 1 . . 1 . . 7 2 2 . . . . . . 4 . 1 1 1 Traps | -11 -10 -10 -9 -9 -9 -8 -8 -8 -8 -8 -7 -7 -7 -7 -6 -6 -5 -5 -4 -4 ------- Run | Scr Mat Min Mat Min Exi Min Mat Gar Mat Gar Fac Gar Fac Gar Fac Gar Fac Gar Fac Upp Traps Triggered 37 | . 1 . . . . . . 3 . 5 . 4 1 7 1 10 . 4 1 . Indirectly . | . . . . . . . . . . . . . . . . . . . . . Trap Hack Attempts . | . . . . . . . . . . . . . . . . . . . . . Triggered . | . . . . . . . . . . . . . . . . . . . . . Disarmed . | . . . . . . . . . . . . . . . . . . . . . Reprogrammed . | . . . . . . . . . . . . . . . . . . . . . Reused . | . . . . . . . . . . . . . . . . . . . . . Traps Extracted . | . . . . . . . . . . . . . . . . . . . . . Installed . | . . . . . . . . . . . . . . . . . . . . . Triggered 1 | . . . . . . . . . . . . . . 1 . . . . . . Machines | -11 -10 -10 -9 -9 -9 -8 -8 -8 -8 -8 -7 -7 -7 -7 -6 -6 -5 -5 -4 -4 ---------- Run | Scr Mat Min Mat Min Exi Min Mat Gar Mat Gar Fac Gar Fac Gar Fac Gar Fac Gar Fac Upp Machines Disabled 34 | . 1 . . . . 1 . 3 1 4 . 3 2 4 . 4 . 4 6 1 Max in Single Turn 2 | . 1 . . . . . . 1 1 2 . 1 . 1 . 1 . 1 2 1 Garrison Relay 19 | . . . . . . . . 2 . 2 . 3 . 4 . 4 . 4 . . Phase Generator 1 | . . . . . . . . . . 1 . . . . . . . . . . Machines Sabotaged . | . . . . . . . . . . . . . . . . . . . . . Garrisons Compromised . | . . . . . . . . . . . . . . . . . . . . . Overloaded Fab Kills 1 | . . . . . . . . . . . . . 1 . . . . . . . Fab Network Shutdowns . | . . . . . . . . . . . . . . . . . . . . . Hacking | -11 -10 -10 -9 -9 -9 -8 -8 -8 -8 -8 -7 -7 -7 -7 -6 -6 -5 -5 -4 -4 --------- Run | Scr Mat Min Mat Min Exi Min Mat Gar Mat Gar Fac Gar Fac Gar Fac Gar Fac Gar Fac Upp Machines Accessed 43 | . 4 . 4 1 . . 7 . 4 . 5 . 7 . 3 . 2 . 6 . Terminals 26 | . 2 . 2 1 . . 5 . 2 . 4 . 5 . 1 . 1 . 3 . Fabricators 2 | . . . . . . . . . . . . . 1 . . . . . 1 . Repair Stations . | . . . . . . . . . . . . . . . . . . . . . Recycling Units 9 | . 2 . 2 . . . 1 . 1 . . . . . 1 . . . 2 . Scanalyzers . | . . . . . . . . . . . . . . . . . . . . . Garrison Access 6 | . . . . . . . 1 . 1 . 1 . 1 . 1 . 1 . . . Total Hacks 130 | . 14 . 11 4 . . 26 . 10 . 16 . 11 . 10 . 7 . 21 . Successful 76 | . 11 . 6 3 . . 12 . 9 . 10 . 4 . 6 . 5 . 10 . Failed 54 | . 3 . 5 1 . . 14 . 1 . 6 . 7 . 4 . 2 . 11 . Catastrophic 10 | . . . 1 1 . . 2 . . . 1 . 2 . . . 1 . 2 . Database Lockouts . | . . . . . . . . . . . . . . . . . . . . . Manual 74 | . 9 . 5 4 . . 14 . 7 . 7 . 6 . 6 . 5 . 11 . Terminals 90 | . 10 . 6 4 . . 21 . 6 . 14 . 8 . 3 . 5 . 13 . Fabricators 5 | . . . . . . . . . . . . . 1 . . . . . 4 . Repair Stations . | . . . . . . . . . . . . . . . . . . . . . Recycling Units 21 | . 4 . 5 . . . 2 . 2 . . . . . 4 . . . 4 . Scanalyzers . | . . . . . . . . . . . . . . . . . . . . . Garrison Access 14 | . . . . . . . 3 . 2 . 2 . 2 . 3 . 2 . . . Terminal Hacks 25 | . 3 . 1 3 . . 6 . . . 5 . . . . . 3 . 4 . Prototype ID Bank 7 | . 2 . . 3 . . . . . . . . . . . . 1 . 1 . Branch Access Points 3 | . 1 . . . . . 1 . . . 1 . . . . . . . . . Terminal Index 1 | . . . . . . . . . . . . . . . . . . . 1 . Garrison Index 1 | . . . . . . . . . . . 1 . . . . . . . . . Alert Level 1 | . . . . . . . 1 . . . . . . . . . . . . . Unreport Threat 6 | . . . . . . . 3 . . . 1 . . . . . 2 . . . Locate Traps 3 | . . . 1 . . . . . . . 1 . . . . . . . 1 . Recall Investigation 1 | . . . . . . . . . . . 1 . . . . . . . . . Zone Layout 2 | . . . . . . . 1 . . . . . . . . . . . 1 . Fabricator Hacks 1 | . . . . . . . . . . . . . . . . . . . 1 . Build 1 | . . . . . . . . . . . . . . . . . . . 1 . Repair Station Hacks . | . . . . . . . . . . . . . . . . . . . . . Recycling Unit Hacks 8 | . 2 . 2 . . . . . 1 . . . . . 1 . . . 2 . Report Inventory 8 | . 2 . 2 . . . . . 1 . . . . . 1 . . . 2 . Scanalyzer . | . . . . . . . . . . . . . . . . . . . . . Garrison Access Hacks 12 | . . . . . . . 2 . 2 . 2 . 2 . 2 . 2 . . . Unlock Access 6 | . . . . . . . 1 . 1 . 1 . 1 . 1 . 1 . . . Coupler Status 6 | . . . . . . . 1 . 1 . 1 . 1 . 1 . 1 . . . Unauthorized Hacks 85 | . 13 . 8 . . . 14 . 13 . 9 . 8 . 9 . . . 11 . Terminals 21 | . 4 . 1 . . . 3 . 5 . 3 . 1 . 2 . . . 2 . Track 1 | . 1 . . . . . . . . . . . . . . . . . . . Assimilate 1 | . . . . . . . . . . . . . 1 . . . . . . . Botnet 12 | . 2 . 1 . . . 2 . 2 . 2 . . . 1 . . . 2 . Disrupt 1 | . . . . . . . . . 1 . . . . . . . . . . . Operators 6 | . 1 . . . . . 1 . 2 . 1 . . . 1 . . . . . Fabricators 1 | . . . . . . . . . . . . . 1 . . . . . . . Overload 1 | . . . . . . . . . . . . . 1 . . . . . . . Repair Stations . | . . . . . . . . . . . . . . . . . . . . . Recycling Units 7 | . 2 . 2 . . . 1 . 1 . . . . . . . . . 1 . Mask 4 | . 2 . . . . . 1 . 1 . . . . . . . . . . . Tunnel 3 | . . . 2 . . . . . . . . . . . . . . . 1 . Scanalyzers . | . . . . . . . . . . . . . . . . . . . . . Garrison Access 1 | . . . . . . . . . . . . . . . 1 . . . . . Restock 1 | . . . . . . . . . . . . . . . 1 . . . . . Data Cores Recovered . | . . . . . . . . . . . . . . . . . . . . . Used . | . . . . . . . . . . . . . . . . . . . . . Hacking Detections 35 | . 2 . 3 1 . . 6 . 4 . 5 . 4 . 3 . 2 . 5 . Full Trace Events 6 | . 1 . 1 . . . . . 1 . 1 . . . 1 . . . 1 . Feedback Events . | . . . . . . . . . . . . . . . . . . . . . Feedback Blocked . | . . . . . . . . . . . . . . . . . . . . . Robot Schematics Acquired . | . . . . . . . . . . . . . . . . . . . . . Robots Built . | . . . . . . . . . . . . . . . . . . . . . Matter . | . . . . . . . . . . . . . . . . . . . . . Time . | . . . . . . . . . . . . . . . . . . . . . Total Robot Build Rating . | . . . . . . . . . . . . . . . . . . . . . Part Schematics Acquired . | . . . . . . . . . . . . . . . . . . . . . Parts Built 2 | . . . . . . . . . . . . . . . . . . . 2 . Matter 278 | . . . . . . . . . . . . . . . . . . . 278 . Time 69 | . . . . . . . . . . . . . . . . . . . 69 . Total Part Build Rating 18 | . . . . . . . . . . . . . . . . . . . 18 . Parts Repaired . | . . . . . . . . . . . . . . . . . . . . . Time . | . . . . . . . . . . . . . . . . . . . . . Parts Recycled . | . . . . . . . . . . . . . . . . . . . . . Recycled Matter . | . . . . . . . . . . . . . . . . . . . . . Retrieved Matter . | . . . . . . . . . . . . . . . . . . . . . Retrieved Components . | . . . . . . . . . . . . . . . . . . . . . Parts Scanalyzed . | . . . . . . . . . . . . . . . . . . . . . Part Schematics Acquired . | . . . . . . . . . . . . . . . . . . . . . Parts Damaged . | . . . . . . . . . . . . . . . . . . . . . Bothacking | -11 -10 -10 -9 -9 -9 -8 -8 -8 -8 -8 -7 -7 -7 -7 -6 -6 -5 -5 -4 -4 ------------ Run | Scr Mat Min Mat Min Exi Min Mat Gar Mat Gar Fac Gar Fac Gar Fac Gar Fac Gar Fac Upp Used RIF Installer 6 | . . . . . . . . 1 . 1 . 1 . 1 . 1 . 1 . . Robot Detection 1 | . . . . . . . . . . . . . . . . . . 1 . . Patrol Navigation 1 | . . . . . . . . . . . . . . 1 . . . . . . Alert ID Control 1 | . . . . . . . . . . 1 . . . . . . . . . . Program Shield 1 | . . . . . . . . . . . . 1 . . . . . . . . Autooverride 1 | . . . . . . . . . . . . . . . . 1 . . . . Robots Hacked 74 | . . . . . . . . . . . 1 8 3 14 5 7 . 19 15 2 Non-combat 9 | . . . . . . . . . . . . . 2 1 2 . . . 4 . Combat 65 | . . . . . . . . . . . 1 8 1 13 3 7 . 19 11 2 Autooverrided 9 | . . . . . . . . . . . . . . . . . . 6 1 2 Robot Hacks Applied 67 | . . . . . . . . . . . 1 8 3 15 6 7 . 13 14 . find_chute 1 | . . . . . . . . . . . . . . . 1 . . . . . hold_bot 1 | . . . . . . . . . . . . . . . . . . . 1 . drop_inventory 2 | . . . . . . . . . . . . . 1 . . . . . 1 . release_backups 2 | . . . . . . . . . . . . . . . 1 . . . 1 . relay_feed 3 | . . . . . . . . . . . . . 1 1 . . . . 1 . scatter_targeting 2 | . . . . . . . . . . . . 1 . . . . . 1 . . link_complan 1 | . . . . . . . . . . . . . . 1 . . . . . . broadcast_data 1 | . . . . . . . . . . . . . . . . . . . 1 . disrupt_area 1 | . . . . . . . . . . . . . . . . . . . 1 . overload_power 6 | . . . . . . . . . . . . 2 . 2 1 . . 1 . . amplify_resonance 9 | . . . . . . . . . . . . 3 . 5 . . . 1 . . streamctrl_high 1 | . . . . . . . . . . . . . . . . . . . 1 . formatsys_high 37 | . . . . . . . . . . . 1 2 1 6 3 7 . 10 7 . Relay Couplers Released 31 | . . . . . . . . 4 . 3 . 4 . 7 . 5 . 8 . . Machine Destruction 31 | . . . . . . . . 4 . 3 . 4 . 7 . 5 . 8 . . Attached 17 | . . . . . . . . . . 1 2 . . 4 1 3 . 6 . . Robots Rewired 1 | . . . . . . . . . . . . . . . 1 . . . . . Allies Hacked . | . . . . . . . . . . . . . . . . . . . . . Hacks Repelled . | . . . . . . . . . . . . . . . . . . . . . Allies | -11 -10 -10 -9 -9 -9 -8 -8 -8 -8 -8 -7 -7 -7 -7 -6 -6 -5 -5 -4 -4 -------- Run | Scr Mat Min Mat Min Exi Min Mat Gar Mat Gar Fac Gar Fac Gar Fac Gar Fac Gar Fac Upp Total Allies 55 | . . 4 . 2 . . . . . . 1 2 2 6 4 7 . 16 9 2 Largest Group 11 | . . 4 4 5 4 3 1 . . . 1 3 2 3 6 5 3 6 11 1 Highest-Rated Group 392 | . . 71 71 91 71 40 14 . . . 21 53 31 68 124 187 96 235 392 47 Highest-Rated Ally 81 | . . 31 31 31 31 16 14 . . . 21 21 21 30 32 81 32 81 58 47 Total Orders 19 | . . . 1 . . . . . . . 3 . 7 . 4 . 1 . 3 . STAY 2 | . . . . . . . . . . . . . 1 . 1 . . . . . GOTO 8 | . . . 1 . . . . . . . 2 . 3 . . . 1 . 1 . FOLLOW 6 | . . . . . . . . . . . 1 . 3 . 1 . . . 1 . EXPLORE 3 | . . . . . . . . . . . . . . . 2 . . . 1 . Ally Attacks 359 | . . 4 4 27 . 27 . . . . 4 12 7 28 19 46 . 76 100 5 Total Damage 8148 | . . 66 47 305 . 488 . . . . 77 254 187 397 242 1362 . 1642 2906 175 Kills 66 | . . 2 2 2 . 7 . . . . 2 3 1 7 1 14 . 7 18 . Allies Corrupted 2 | . . . . . . . . . . . . . . . 2 . . . . . Allies Melted . | . . . . . . . . . . . . . . . . . . . . . Intel | -11 -10 -10 -9 -9 -9 -8 -8 -8 -8 -8 -7 -7 -7 -7 -6 -6 -5 -5 -4 -4 ------- Run | Scr Mat Min Mat Min Exi Min Mat Gar Mat Gar Fac Gar Fac Gar Fac Gar Fac Gar Fac Upp Robot Analysis Total . | . . . . . . . . . . . . . . . . . . . . . Derelict Logs Recovered 2 | . . 1 . 1 . . . . . . . . . . . . . . . . Drone Launches 6 | . . . . . . . . . . . . . . . 4 . . . 2 . Drone Recoveries . | . . . . . . . . . . . . . . . . . . . . . Exploration | -11 -10 -10 -9 -9 -9 -8 -8 -8 -8 -8 -7 -7 -7 -7 -6 -6 -5 -5 -4 -4 ------------- Run | Scr Mat Min Mat Min Exi Min Mat Gar Mat Gar Fac Gar Fac Gar Fac Gar Fac Gar Fac Upp Turns Passed 7273 | 70 210 318 181 530 69 445 406 379 189 309 339 501 477 509 328 654 68 552 586 153 Spaces Moved 8413 | 13 175 385 237 604 75 422 389 447 270 316 484 576 725 566 447 639 136 551 744 212 Core 2 | 2 . . . . . . . . . . . . . . . . . . . . Treads . | . . . . . . . . . . . . . . . . . . . . . Legs . | . . . . . . . . . . . . . . . . . . . . . Wheels 114 | 11 103 . . . . . . . . . . . . . . . . . . . Hover 7889 | . 72 385 237 604 75 422 389 83 226 316 484 576 725 566 447 639 136 551 744 212 Flight 408 | . . . . . . . . 364 44 . . . . . . . . . . . Fastest Speed 34 | 50 56 56 56 56 56 52 52 34 34 52 42 42 42 42 42 42 42 42 42 42 Average Speed 47 | 85 78 56 56 56 56 67 52 40 49 52 44 42 42 42 42 42 42 42 42 45 Slowest Speed 120 | 100 90 56 56 56 56 116 52 120 60 52 52 42 42 42 52 42 42 42 52 102 Overloaded Moves . | . . . . . . . . . . . . . . . . . . . . . Propulsion Burnouts . | . . . . . . . . . . . . . . . . . . . . . Robots Hopped . | . . . . . . . . . . . . . . . . . . . . . Cave-ins Triggered . | . . . . . . . . . . . . . . . . . . . . . Exploration Rate (%) 47 | 2 36 72 26 99 12 87 59 67 38 50 19 72 23 84 23 79 4 78 19 38 Regions Visited 20 Branch Regions 5 Pre-discovered Areas 4 | . . . 2 1 . . . . . . . . . . . . . . 1 . Known Exits Taken 8 | . 1 . . . . . 1 . 1 . 1 . 1 . 1 . 1 . 1 . Unknown Exits Taken 6 | 1 . 1 1 1 1 1 . . . . . . . . . . . . . . Scrap Searched 5 | . . 1 . 1 . 1 . . . . . . . . . . . . . 2 Spaces Dug 31 | . . . . 1 . 3 1 . 4 . 8 . 10 . 1 . 3 . . . Terrain Destroyed 296 | . . . . 1 . 55 1 . 4 76 8 7 39 8 1 2 3 1 44 46 Melee 31 | . . . . 1 . 3 1 . 4 . 8 . 10 . 1 . 3 . . . Projectile 53 | . . . . . . . . . . . . . . 1 . 1 . 1 29 21 AOE 212 | . . . . . . 52 . . . 76 . 7 29 7 . 1 . . 15 25 Actions | -11 -10 -10 -9 -9 -9 -8 -8 -8 -8 -8 -7 -7 -7 -7 -6 -6 -5 -5 -4 -4 --------- Run | Scr Mat Min Mat Min Exi Min Mat Gar Mat Gar Fac Gar Fac Gar Fac Gar Fac Gar Fac Upp Total 10753 | 54 216 462 265 748 101 533 496 585 302 427 576 767 838 761 562 947 143 819 912 239 Wait 971 | 28 9 44 . 104 27 52 28 24 . 56 45 78 14 46 67 164 1 157 25 2 Move 8395 | 12 174 384 236 603 74 421 388 446 269 315 483 575 725 564 447 638 136 550 743 212 Hop . | . . . . . . . . . . . . . . . . . . . . . Pick Up 27 | 1 3 1 2 2 . . 2 4 . 2 1 2 1 2 1 1 . 1 1 . Fast Attach 59 | 4 6 1 2 . . 2 2 4 4 . 5 1 2 4 6 3 1 1 11 . Attach 9 | . . 1 . . . 1 1 1 . 1 1 1 1 . 1 . . . . . Detach 8 | . 2 1 . . . 1 . 1 . . . . 1 1 . 1 . . . . Swap 97 | . 1 1 2 1 . 7 5 3 3 3 9 10 13 14 3 7 1 8 4 2 Drop 68 | 1 5 2 4 1 . . 2 4 5 2 7 1 4 4 8 2 1 2 13 . Fire 553 | 8 16 14 11 18 . 23 50 31 10 22 11 46 32 58 23 53 . 45 68 14 Melee 68 | . . . . 11 . 3 4 4 5 1 13 7 10 6 1 . 3 . . . Ram . | . . . . . . . . . . . . . . . . . . . . . Kick . | . . . . . . . . . . . . . . . . . . . . . Crush . | . . . . . . . . . . . . . . . . . . . . . Escape Stasis 125 | . . . . . . . . 36 . 7 . 4 4 34 . 28 . 12 . . Rewire 4 | . . . . . . . . . . . 1 . . . 1 1 . . 1 . Trap . | . . . . . . . . . . . . . . . . . . . . . Miscellaneous 369 | . . 13 8 8 . 23 14 27 6 18 . 42 31 28 4 49 . 43 46 9 Route ------- -11/Scrapyard -10/Materials (discovered 2 exits: *Min x2) -10/Mines (discovered 2 exits: *Mat x2) -9/Materials -9/Mines (discovered 3 exits: *Mat x2 / [*Exi]) -9/Exiles -8/Mines (discovered 2 exits: *Mat x2) -8/Materials (discovered 3 exits: *Fac x2 / Gar) -8/Garrison (discovered 2 exits: *Mat x2) -8/Materials (discovered 2 exits: *Fac / Gar) -8/Garrison -7/Factory (discovered 3 exits: Low x2 / Gar) -7/Garrison (discovered 3 exits: *Fac x3) -7/Factory (discovered 2 exits: *Fac / Gar) -7/Garrison (discovered 3 exits: *Fac x3) -6/Factory (discovered 3 exits: *Fac / *Low / Gar) -6/Garrison (discovered 3 exits: *Fac x3) -5/Factory -5/Garrison (discovered 3 exits: *Fac x3) -4/Factory (discovered 2 exits: *Res / *Upp) -4/Upper Caves History --------- Turn | Location | Event 2 | -11/Scrapyard | Upgraded with Propulsion slot (x1) 2 | -11/Scrapyard | Upgraded with Utility slot (x1) 2 | -11/Scrapyard | Upgraded with Weapon slot (x1) 2 | -11/Scrapyard | Discovered new exit (range 1) 71 | -11/Scrapyard | Entered Materials 224 | -10/Materials | Identified exit to Mines 281 | -10/Materials | Entered Mines 290 | -10/Mines | Reached level 2 309 | -10/Mines | Build established: Mutant 393 | -10/Mines | Received a Mining Laser from a helpful Derelict 435 | -10/Mines | Upgraded with Utility slot (x1) 490 | -10/Mines | Assisted by bots powering up and referring to "LRC-V3" 497 | -10/Mines | Discovered new exit (range 13) 531 | -10/Mines | Learned Materials stockpile data 540 | -10/Mines | Discovered new exit (range 12) 599 | -10/Mines | Entered Materials 599 | -9/Materials | Accompanied by 4 allies 601 | -9/Materials | Reached level 3 625 | -9/Materials | Upgraded with Utility slot (x1) 725 | -9/Materials | Reached level 4 745 | -9/Materials | Discovered new exit (range 13) 759 | -9/Materials | Build established: Scavenger-Scout 780 | -9/Materials | Entered Mines 780 | -9/Mines | Accompanied by 3 allies 800 | -9/Mines | Discovered new exit (range 11) 801 | -9/Mines | Discovered new exit (range 16) 865 | -9/Mines | Reached level 5 869 | -9/Mines | Joined a pair of Derelicts in attacking an 0b10 outpost 903 | -9/Mines | Received a Rocket Launcher from a helpful Derelict 912 | -9/Mines | Learned location of 1 exit from Materials 1048 | -9/Mines | Learned location of Storage (-9) 1245 | -9/Mines | Deemed a non-threat by the Exiles lab entrance 1245 | -9/Mines | Discovered new exit (range 5) 1310 | -9/Mines | Entered Exiles 1310 | -9/Exiles | Accompanied by 4 allies 1324 | -9/Exiles | Met 8R-AWN 1340 | -9/Exiles | Led the pair of lost Derelicts to a safe place 1340 | -9/Exiles | Discovered new exit (range 14) 1379 | -9/Exiles | Entered Mines 1379 | -8/Mines | Accompanied by 3 allies 1381 | -8/Mines | Reached level 6 1395 | -8/Mines | Discovered new exit (range 10) 1501 | -8/Mines | Discovered new exit (range 16) 1547 | -8/Mines | Reached level 7 1713 | -8/Mines | Upgraded with Utility slot (x1) 1715 | -8/Mines | Upgraded with Propulsion slot (x1) 1824 | -8/Mines | Entered Materials 1824 | -8/Materials | Accompanied by 1 ally 1825 | -8/Materials | Identified exit to Factory 1826 | -8/Materials | Reached level 8 1878 | -8/Materials | Upgraded with Utility slot (x1) 1923 | -8/Materials | Garrison activated, responded to threat 1926 | -8/Materials | Reached level 9 2067 | -8/Materials | Discovered exit to Factory (range 8) 2092 | -8/Materials | Upgraded with Weapon slot (x1) 2111 | -8/Materials | Core integrity fell below 50% 2137 | -8/Materials | Core integrity fell below 20% 2230 | -8/Materials | Identified exit to Garrison 2230 | -8/Materials | Entered Garrison 2232 | -8/Garrison | Reached level 10 2292 | -8/Garrison | Triggered checkpoint 2294 | -8/Garrison | Triggered checkpoint 2386 | -8/Garrison | Destroyed 8 combat bots 2482 | -8/Garrison | Triggered checkpoint 2488 | -8/Garrison | Discovered new exit (range 13) 2492 | -8/Garrison | Identified exit to Materials 2494 | -8/Garrison | Installed Relay Interface Framework 2494 | -8/Garrison | Reached level 11 2512 | -8/Garrison | Garrison Relay disabled 2569 | -8/Garrison | Discovered exit to Materials (range 13) 2588 | -8/Garrison | Garrison Relay disabled 2596 | -8/Garrison | Triggered checkpoint 2609 | -8/Garrison | Entered Materials 2727 | -8/Materials | Discovered exit to Factory (range 2) 2797 | -8/Materials | Identified exit to Garrison 2798 | -8/Materials | Entered Garrison 2810 | -8/Garrison | Triggered checkpoint 2836 | -8/Garrison | Garrison Relay disabled 2862 | -8/Garrison | Triggered checkpoint 2872 | -8/Garrison | Triggered checkpoint 2894 | -8/Garrison | Reached level 12 2940 | -8/Garrison | Build established: Scout 2946 | -8/Garrison | Discovered exit to Factory (range 13) 2957 | -8/Garrison | Expanded RIF knowledge: Alert ID Control 2986 | -8/Garrison | Phase Generator disabled 3067 | -8/Garrison | Triggered checkpoint 3107 | -8/Garrison | Entered Factory 3109 | -7/Factory | Reached level 13 3145 | -7/Factory | Identified exit to Lower Caves 3183 | -7/Factory | Upgraded with Utility slot (x1) 3401 | -7/Factory | Identified exit to Garrison 3446 | -7/Factory | Entered Garrison 3446 | -7/Garrison | Accompanied by 1 ally 3448 | -7/Garrison | Reached level 14 3465 | -7/Garrison | Build established: Bothacker-Scout 3478 | -7/Garrison | Triggered checkpoint 3540 | -7/Garrison | Triggered checkpoint 3567 | -7/Garrison | Garrison Relay disabled 3580 | -7/Garrison | Triggered checkpoint 3590 | -7/Garrison | Discovered new exit (range 14) 3598 | -7/Garrison | Triggered checkpoint 3602 | -7/Garrison | Identified exit to Factory 3604 | -7/Garrison | Expanded RIF knowledge: Program Shield 3626 | -7/Garrison | Reached level 15 3678 | -7/Garrison | Discovered exit to Factory (range 13) 3701 | -7/Garrison | Garrison Relay disabled 3740 | -7/Garrison | Triggered checkpoint 3742 | -7/Garrison | Triggered checkpoint 3778 | -7/Garrison | Triggered checkpoint 3816 | -7/Garrison | Triggered checkpoint 3817 | -7/Garrison | Garrison Relay disabled 3856 | -7/Garrison | Discovered exit to Factory (range 13) 3888 | -7/Garrison | Core integrity fell below 50% 3947 | -7/Garrison | Entered Factory 3947 | -7/Factory | Accompanied by 1 ally 4030 | -7/Factory | Upgraded with Utility slot (x1) 4055 | -7/Factory | Upgraded with Power slot (x1) 4162 | -7/Factory | Discovered new exit (range 15) 4185 | -7/Factory | Identified exit to Factory 4269 | -7/Factory | P-60 Hacker assimilated allied Technician 4a 4305 | -7/Factory | Reached level 16 4424 | -7/Factory | Identified exit to Garrison 4424 | -7/Factory | Entered Garrison 4438 | -7/Garrison | Triggered checkpoint 4463 | -7/Garrison | Garrison Relay disabled 4465 | -7/Garrison | Upgraded with Utility slot (x1) 4522 | -7/Garrison | Discovered exit to Factory (range 10) 4528 | -7/Garrison | Expanded RIF knowledge: Patrol Navigation 4546 | -7/Garrison | Triggered checkpoint 4566 | -7/Garrison | Garrison Relay disabled 4630 | -7/Garrison | Triggered checkpoint 4630 | -7/Garrison | Triggered checkpoint 4706 | -7/Garrison | Triggered checkpoint 4722 | -7/Garrison | Triggered checkpoint 4765 | -7/Garrison | Triggered checkpoint 4766 | -7/Garrison | Discovered exit to Factory (range 14) 4778 | -7/Garrison | Triggered checkpoint 4787 | -7/Garrison | Garrison Relay disabled 4856 | -7/Garrison | Triggered checkpoint 4870 | -7/Garrison | Discovered exit to Factory (range 18) 4880 | -7/Garrison | Garrison Relay disabled 4933 | -7/Garrison | Entered Factory 4933 | -6/Factory | Accompanied by 3 allies 4935 | -6/Factory | Reached level 17 5094 | -6/Factory | Discovered new exit (range 50) 5116 | -6/Factory | Discovered new exit (range 2) 5116 | -6/Factory | Identified exit to Lower Caves 5242 | -6/Factory | Identified exit to Garrison 5261 | -6/Factory | Entered Garrison 5261 | -6/Garrison | Accompanied by 3 allies 5263 | -6/Garrison | Reached level 18 5264 | -6/Garrison | Expanded RIF knowledge: Autooverride 5313 | -6/Garrison | Spotted B-75 Beast 5314 | -6/Garrison | Triggered checkpoint 5315 | -6/Garrison | Assimilated Beast 5a with formatsys_high 5320 | -6/Garrison | Triggered checkpoint 5330 | -6/Garrison | Triggered checkpoint 5337 | -6/Garrison | Core integrity fell below 50% 5409 | -6/Garrison | Discovered new exit (range 12) 5436 | -6/Garrison | Garrison Relay disabled 5456 | -6/Garrison | Triggered checkpoint 5500 | -6/Garrison | Triggered checkpoint 5583 | -6/Garrison | Discovered new exit (range 13) 5587 | -6/Garrison | Identified exit to Factory 5602 | -6/Garrison | Triggered checkpoint 5615 | -6/Garrison | Garrison Relay disabled 5730 | -6/Garrison | Triggered checkpoint 5753 | -6/Garrison | Garrison Relay disabled 5816 | -6/Garrison | Discovered exit to Factory (range 8) 5850 | -6/Garrison | Garrison Relay disabled 5856 | -6/Garrison | Triggered checkpoint 5859 | -6/Garrison | Reached level 19 5915 | -6/Garrison | Entered Factory 5915 | -5/Factory | Accompanied by 3 allies 5917 | -5/Factory | Reached level 20 5965 | -5/Factory | Upgraded with Utility slot (x1) 5983 | -5/Factory | Identified exit to Garrison 5983 | -5/Factory | Entered Garrison 5983 | -5/Garrison | Accompanied by 3 allies 5998 | -5/Garrison | Triggered checkpoint 6031 | -5/Garrison | Garrison Relay disabled 6035 | -5/Garrison | Upgraded with Utility slot (x1) 6074 | -5/Garrison | Spotted B-75 Beast 6086 | -5/Garrison | Triggered checkpoint 6101 | -5/Garrison | Core integrity fell below 50% 6102 | -5/Garrison | Triggered checkpoint 6118 | -5/Garrison | Triggered checkpoint 6153 | -5/Garrison | Discovered new exit (range 13) 6158 | -5/Garrison | Identified exit to Factory 6161 | -5/Garrison | Expanded RIF knowledge: Robot Detection 6178 | -5/Garrison | Triggered checkpoint 6193 | -5/Garrison | Reached level 21 6214 | -5/Garrison | Garrison Relay disabled 6238 | -5/Garrison | Triggered checkpoint 6312 | -5/Garrison | Discovered exit to Factory (range 12) 6330 | -5/Garrison | Triggered checkpoint 6378 | -5/Garrison | Garrison Relay disabled 6453 | -5/Garrison | Discovered exit to Factory (range 15) 6459 | -5/Garrison | Build established: Botlord-Scout 6482 | -5/Garrison | Triggered checkpoint 6485 | -5/Garrison | Garrison Relay disabled 6535 | -5/Garrison | Entered Factory 6535 | -4/Factory | Accompanied by 5 allies 6537 | -4/Factory | Reached level 22 6695 | -4/Factory | Fabricated Lgt. Quantum Reactor (x2) 6758 | -4/Factory | Reached level 23 6768 | -4/Factory | Discovered new exit (range 16) 6864 | -4/Factory | Identified exit to Research 6948 | -4/Factory | Discovered new exit (range 14) 6970 | -4/Factory | Identified exit to Upper Caves 6974 | -4/Factory | Upgraded with Utility slot (x1) 7013 | -4/Factory | Core integrity fell below 50% 7089 | -4/Factory | Core integrity fell below 20% 7121 | -4/Factory | Entered Upper Caves 7123 | -4/Upper Caves | Reached level 24 7264 | -4/Upper Caves | Attracted the attention of an 0b10 base 7274 | -4/Upper Caves | Destroyed by S-27 Virus with Autogun Last Messages --------------- 07227_ Flexi-carbon Leg fries itself beyond repair. 07229_ Myomer Leg self-destruct mechanism malfunctions. 07229_ Plasma Rifle fries itself beyond repair. 07229_ Flexi-carbon Leg fries itself beyond repair. 07230_ Slug penetrates G-67 Veteran. 07230_ G-67 Veteran destroyed. 07230_ Slug penetrates Wall. 07237_ Adv. Heat Sink self-destruct mechanism malfunctions. 07237_ Acquired 118 matter. 07237_ Acquired 40 matter. 07238_ Adv. Heat Sink fries itself beyond repair. 07238_ Acquired 19 matter. 07253_ Discarded Core Analyzer. 07262_ Slug penetrates Wall. 07265_ Slug penetrates S-27 Virus. 07265_ S-27 Virus destroyed. 07265_ Slug penetrates Y-72 Warden. 07265_ Door malfunctions. 07266_ RIF automatically rewrites G-67 Veteran IFF filter. 07273_ S-27 Virus destroyed. Map ----- +----------------------------------------------------+ | ???????????????? ### % ## #?##???# ##?##! | | ??????????????????? ###??##?# ##??# | | ???????????????? ? ?#?# ##??##?## ##?## | | ????????????????? ?#?#?# ###??### #### | | ????????????????? ??#??# %! ##### | | ???????????? ????????#?####"" =%= ## | | ??????????? ? ? ???###?##?### = ### | | ???????????????? ?#??### ## = "##### ### | | ??????????????? ####### ! ###### #?# | | ???????????? ??#????# "" ###### #### | | ???? ?? ?? ???#?#?#### #### #?## | | ?????????? #?##?#???####### ### ##?# | | ????????? ? ####?####?#?#?## #### | | ??????????? ? ## ?###?### ### | | ????#???? ? ??#?### ## ## | | ??????#? ?? ?? #??##?# ######## | | ??????? ? ? ##?#?## ######## ### | | ?????#? ? ? ##?### ######## ### | | ?????# ? ?? ?# ##?## #####?##### # ### | | ?????#? #? ??#?# ### ##?####?#### ## ### | | ?????#???## ?#### ## ##???? ### ### | | ???????????#?#### #?# ###?#### ?# ### | | ?#####??????#### #?## #?#??##? #??## ## | | ???#??#?##?#### #### ##?##?#? ? ########## | | ??#????#?###### ## #### #????#?#? #?###?###?# | | ?#?##????#?### ### ####@ #??#?#?## ##?#######?# | | ??##?#??#????###??# ###?##?## ##?#???????? | | ?#???????# ????#### ######?## ? ??????##??? | | ???#?#???????##?#### ####### ? ? ??? ????? | | ????##?#???? #?? ?## ##? ?## ? ? ? ? ???#?? | | ???????#? ? ??? ?# #???##??#?? ? ??##? | | ????#?## ? ??? ?# ? ?????# ?????#?? | | ???#??#?? ???? ????# #?##?? ? ??????#? | | ????#??????##? ?### ####? ?? ???## | | ??????#??##### #??? ?? ??????## | | ????##?#??? ???? [ #????????#? | | ??????####?? ?? === ###?#? ?###?### | | ?????#??#? ?#??##//#%#s#### ##???#? ?##???# | | ??????#?#? ?#???? %=*s?? ? #?#??? ? ##??# # | | ????????#?? #?? # Y#== ? ?? ??? ? ?## ? | | ?????????? ??" ?#g ? * ? #? ????? ?????# ?? | | ??????????? ?"? #g ?#???#?? ###? ??#????? ? | | ????????????#?? # ? ? ????#??#??????#????? ??? | | ????????????#? ? ? ???????? ??#?### ??#?? ???? | | ????????????#????? ??? ??? + ??? ??????????? ????? | | ???????????????? ?????? ??? ? ? ???????? ?????? | | ????????????????? ????"????#? ??#??????????? ????? | | ???????????????? ????? ??????#???????????#???? ? | | ??????????????????? ????????????????????????????#? | | ???????????????????????????????????????????? ?#??? | +----------------------------------------------------+ Best States ------------- Heat Dissipation 51 Energy Generation 45 Energy Capacity 340 Matter Stores 300 Matter Capacity 300 Sight Range 18 Robot Scan Range 18 Terrain Scan Range 20 Terrain Scan Density 210 Armor Coverage 225 Resistance: KI 5 Evasion (%) 66 Targeting Accuracy 6 Target Analysis 5 Core Analysis 6 Kinecelleration 40 Item Schematics ----------------- None Robot Schematics ------------------ None Fabricated ------------ Lgt. Quantum Reactor | x2 | -4/Factory | Preloaded Alien Tech Used ----------------- None Achievements -------------- Fearless Pwned Challenges ------------ None RPGLIKE | -11 -10 -10 -9 -9 -9 -8 -8 -8 -8 -8 -7 -7 -7 -7 -6 -6 -5 -5 -4 -4 --------- Run | Scr Mat Min Mat Min Exi Min Mat Gar Mat Gar Fac Gar Fac Gar Fac Gar Fac Gar Fac Upp Levels Raised 23 | . . 1 2 1 . 2 2 2 . 1 1 2 1 . 1 2 1 1 2 1 XP Earned 38015 | 3000 690 1844 2731 1595 200 3174 2790 2450 402 1361 2032 2540 887 1048 1686 1582 1520 2069 3561 853 XP Spent 35090 | 2950 50 800 1100 750 . 2320 3500 6350 . . 2090 . 2800 2600 . . 2900 3200 3680 . Upgrades 41 | 9 1 1 1 1 . 4 3 11 . . 2 . 2 1 . . 1 1 3 . Power Slot 1 | . . . . . . . . . . . . . 1 . . . . . . . Propulsion Slot 2 | 1 . . . . . 1 . . . . . . . . . . . . . . Utility Slot 11 | 1 . 1 1 . . 1 1 . . . 1 . 1 1 . . 1 1 1 . Weapon Slot 2 | 1 . . . . . . 1 . . . . . . . . . . . . . Core Integrity 8 | . . . . . . . . 6 . . . . . . . . . . 2 . Heat Dissipation 2 | . . . . . . 2 . . . . . . . . . . . . . . Mass Support 4 | 1 . . . . . . . 3 . . . . . . . . . . . . Inventory Capacity 6 | 2 . . . 1 . . 1 2 . . . . . . . . . . . . Sensor Range 1 | 1 . . . . . . . . . . . . . . . . . . . . Terrain Scan Density 2 | . 1 . . . . . . . . . 1 . . . . . . . . . Ranged Accuracy 1 | 1 . . . . . . . . . . . . . . . . . . . . KI Resistance % 1 | 1 . . . . . . . . . . . . . . . . . . . . Protomatter Created 1806 | . . 40 54 68 . 101 145 203 46 168 . 183 210 103 . 109 . 194 98 84 Integrity Restored 7657 | . . 256 147 126 . 346 318 597 138 372 . 891 659 582 30 1064 . 948 979 204 Core 6704 | . . 222 110 97 . 220 318 597 138 372 . 891 535 582 30 961 . 707 720 204 Parts 953 | . . 34 37 29 . 126 . . . . . . 124 . . 103 . 241 259 . Protomatter Decayed 660 | . . . 22 125 . 88 76 4 . . . 3 20 49 . 79 . 57 137 . Game ------ Seed HardcellLaserDissipator Manual? 0 Play Time 03:12:16 Cumulative 370.0 hours Start 2020.01.13 @ 19:40:14 End 2020.01.13 @ 23:44:18 Sessions 3 Manual Loads 0 Difficulty Rogue Special Mode Winter2019/RPGLIKE Game No. 143 Rogue 143 Adventurer 0 Explorer 0 Win Type - Total 12 Types 8/1/1/2/0/0/0 Lore% 88 Gallery% 86 Achievement% 69 Wizard Run 0 Options --------- ASCII 0 Keyboard 0 Movement Numpad Keybinds 0 Fullscreen 0 Font 14/Dina Map View 76x50 Tactical HUD 1 Map Filters NONE Filters NONE Steam 1 RUN: 53dc3369-0163-4898-b226-60ad6d75b2e4